Cogmind - Beta 16 @@@ ROGUE MODE // 2026.01.06 @ 18:24:16 Player: beter Result: Self-destructed Performance ------------- Evolutions (1) 500 Regions Visited (3) 600 Robots Destroyed (28) 140 Value Destroyed (699) 699 Prototype IDs (0) 0 Alien Tech Used (0) 0 Bonus (0) 0 TOTAL SCORE: 1939 Bonus ------- None Cogmind --------- Core Integrity 63/400 Matter 260/300 Energy 100/100 System Corruption 2% Temperature Cool (0) Movement Core (50) Location -9/Mines Parts ------- > --- POWER (1) -------- (None) > --- PROPULSION (3) --- (None) > --- UTILITY (3) ------ Heat Sink > --- WEAPON (2) ------- Mini Grenade Launcher > --- INVENTORY (5) ---- Medium Laser Medium Laser Small Laser Light Assault Rifle Light Assault Rifle Peak State ------------ > --- POWER ------------ Light Ion Engine > --- PROPULSION ------- Aluminum Leg Aluminum Leg > --- UTILITY ---------- Heat Sink Cooling System Small Storage Unit > --- WEAPON ----------- Particle Gun Mini Grenade Launcher > --- INVENTORY -------- Medium Laser Medium Laser Small Laser Light Assault Rifle Rocket Launcher [Rating: 11] Favorites ----------- Power Light Ion Engine Engine Light Ion Engine Propulsion Aluminum Leg Leg Aluminum Leg Wheel Wheel Utility Small Storage Unit Device Sensor Array Storage Small Storage Unit Weapon Light Assault Rifle Energy Gun Particle Gun Ballistic Gun Light Assault Rifle Ballistic Cannon Light Cannon Launcher Mini Grenade Launcher Slashing Weapon Mining Claw Build | -11 -10 -9 -9 ------- Run | Yrd Mat Mat Min Slots Evolved 2 | . . 2 . Power . | . . . . Propulsion 1 | . . 1 . Utility 1 | . . 1 . Weapon . | . . . . Parts Attached 31 | 5 12 10 4 Power 6 | 1 2 2 1 Engine 6 | 1 2 2 1 Core . | . . . . Reactor . | . . . . Propulsion 9 | 1 5 3 . Treads . | . . . . Leg 7 | . 4 3 . Wheel 2 | 1 1 . . Hover . | . . . . Flight . | . . . . Utility 6 | 1 2 1 2 Device 4 | . 2 . 2 Storage 2 | 1 . 1 . Processor . | . . . . Hackware . | . . . . Protection . | . . . . Artifact . | . . . . Weapon 10 | 2 3 4 1 Energy Gun 2 | . 1 1 . Energy Cannon . | . . . . Ballistic Gun 5 | 2 1 2 . Ballistic Cannon 1 | . . 1 . Launcher 1 | . . . 1 Special Weapon . | . . . . Impact Weapon . | . . . . Slashing Weapon 1 | . 1 . . Piercing Weapon . | . . . . Special Melee Weapon . | . . . . Unidentified Prototypes . | . . . . Parts Lost 19 | . 4 9 6 Power 4 | . 1 2 1 Propulsion 7 | . 2 3 2 Utility 3 | . . 1 2 Weapon 5 | . 1 3 1 Highest Loss Streak 9 | . 4 9 6 To Critical Strikes . | . . . . Average Backups 6 | 4 6 7 4 Power . | . . 1 . Propulsion 1 | 3 2 . . Utility . | . . . . Weapon 2 | . 2 4 4 Tool/Special . | . . . . Unused Backups 8 | . 1 3 4 Power . | . . . . Propulsion 2 | . 1 1 . Utility . | . . . . Weapon 6 | . . 2 4 Tool/Special . | . . . . Average Slot Usage (%) 88 | . 93 81 80 Engine 11 | . 12 8 11 Leg 21 | . 20 22 20 Wheel 3 | . 5 . . Device 11 | . 12 8 18 Storage 15 | . 14 20 9 Energy Gun 6 | . 7 2 10 Ballistic Gun 13 | . 16 12 5 Ballistic Cannon 1 | . . 5 . Slashing Weapon 1 | . 2 . . Peak Build Rating 11 | 5 8 10 11 Average Rating 7 | 4 7 8 9 On Entrance 4 | . 5 8 5 Avg Prop Armor Cover (%) . | . . . . Naked Turns . | . . . . Heaviest Build 16 | 11 14 16 15 Greatest Support 30 | 10 20 30 20 Greatest Overweight (x) 2 | 1 1 2 2 Average Overweight (x) . | . . . . Largest Inventory Capacity 8 | 8 8 8 8 Average Capacity 7 | 7 8 8 7 Most Carried 8 | 7 8 8 6 Average Carried 6 | 4 6 7 4 Final Capacity 8 | 8 8 8 5 Final Carried 8 | 7 8 5 5 Class Distribution -------------------- 89% | Mutant 10% | Scavenger-Mutant Dominant Class ---------------- Mutant | -10/Materials Mutant | -9/Materials Scavenger-Mutant | -9/Mines Resources | -11 -10 -9 -9 ----------- Run | Yrd Mat Mat Min Matter Collected 793 | 216 329 168 80 Remotely . | . . . . Salvage Created 860 | . 410 343 107 Parts 43 | . 18 19 6 Haulers Intercepted . | . . . . Recyclers Shooed . | . . . . Parts Field Recycled . | . . . . Retrieved Matter . | . . . . Parts Self-Destructed . | . . . . Prevented . | . . . . Parts Restored . | . . . . Kills | -11 -10 -9 -9 ------- Run | Yrd Mat Mat Min Combat Hostiles Destroyed 28 | . 10 11 7 Melee 4 | . 4 . . Guns 17 | . 6 9 2 Cannons 2 | . . 2 . AOE 5 | . . . 5 Classes Destroyed 8 | . 3 2 3 Worker 1 | . . . 1 Recycler 1 | . . . 1 Watcher 2 | . 2 . . Swarmer 10 | . 3 4 3 Grunt 11 | . 7 4 . Duelist 1 | . . 1 . Sentry 2 | . . 2 . Assembled 4 | . . . 4 Best Kill Streak 5 | . 3 5 5 Combat Bots Only 5 | . 3 5 4 Max Kills in Single Turn 3 | . 1 1 3 Gunslinging . | . . . . Exploded 2 | . . . 2 Melee 1 | . 1 . . Uniques/NPCs Destroyed . | . . . . Combat | -11 -10 -9 -9 -------- Run | Yrd Mat Mat Min Hostile Shots Fired 292 | . 75 170 47 Missed 89 | . 13 59 17 Hits 203 | . 62 111 30 Melee 4 | . . 3 1 Projectile 199 | . 62 108 29 Critical Strikes 4 | . 1 3 . Damage Taken 2291 | . 760 1144 387 Core 530 | . 193 272 65 Absorbed by Shields . | . . . . Core Remaining (%) 61 | 100 22 . . Volleys Fired 87 | . 19 58 10 Largest 2 | . 2 2 2 Hottest 95 | . 85 50 95 Shots Fired 155 | . 37 98 20 Gun 120 | . 37 73 10 Cannon 25 | . . 25 . Launcher 10 | . . . 10 Special . | . . . . Kinetic 128 | . 30 98 . Thermal 17 | . 7 . 10 Explosive 10 | . . . 10 Electromagnetic . | . . . . Robot Hit Streak 7 | . 5 7 2 Robot Miss Streak 6 | . 2 6 2 Penetration Max . | . . . . Secondary Targets 1 | . 1 . . Max Gunslinging Chain 1 | . 1 . . Shots Hit Robots 98 | . 40 54 4 Core Hits 56 | . 17 24 15 Critical Kills . | . . . . Critical Parts Destroyed . | . . . . Critical Strikes 1 | . 1 . . Burn 1 | . 1 . . Melee Attacks 30 | . 30 . . Impact . | . . . . Slashing 30 | . 30 . . Piercing . | . . . . Sneak Attacks . | . . . . Combat Hostiles . | . . . . Follow-up Attacks . | . . . . Damage Inflicted 1884 | . 649 709 526 Guns 800 | . 295 460 45 Cannons 249 | . . 249 . Explosions 481 | . . . 481 Melee 354 | . 354 . . Ramming . | . . . . Kinetic 940 | . 231 709 . Thermal 109 | . 64 . 45 Explosive 481 | . . . 481 Electromagnetic . | . . . . Impact . | . . . . Slashing 354 | . 354 . . Piercing . | . . . . Highest Corruption 2 | . . . 2 Average Corruption 2 | . . . 2 Corruption Purged . | . . . . Corruption Blocked . | . . . . Overload Shots . | . . . . Overflow Damage 52 | . . . 52 Projectiles . | . . . . Explosions 52 | . . . 52 Melee . | . . . . Knockbacks 5 | . . 5 . Impact . | . . . . Kinetic 5 | . . 5 . Secondary . | . . . . Self-Inflicted Damage 8 | . . . 8 Shots 1 | . . . 1 Rammed . | . . . . Targets Rammed . | . . . . Kicked . | . . . . Crushed . | . . . . Highest Temperature 120 | . 120 20 . Average Temperature 18 | . 36 6 . Received Heat Transfer 735 | . 384 351 . Siege Activations . | . . . . Martial Activations . | . . . . Shielding Activations . | . . . . Robots Disrupted . | . . . . Combat Hostiles . | . . . . Robots Corrupted . | . . . . Combat Hostiles . | . . . . Parts Fried . | . . . . Impact Corruptions . | . . . . Robots Melted . | . . . . Combat Hostiles . | . . . . Parts Melted 1 | . 1 . . Heat Transferred 333 | . 222 . 111 Parts Sabotaged . | . . . . Parts Stolen . | . . . . Parts Stripped . | . . . . Power Chain Reactions . | . . . . Alert | -11 -10 -9 -9 ------- Run | Yrd Mat Mat Min Maximum Alert Level . | . . . . Low Security (%) 100 | 100 100 100 100 Level 1 . | . . . . Level 2 . | . . . . Level 3 . | . . . . Level 4 . | . . . . Level 5 . | . . . . High Security . | . . . . Max Security . | . . . . Peak Influence 92 | . 70 88 92 Initial 34 | . . 9 34 Average 27 | . 19 38 48 Influence Increases 725 | . 285 318 122 Destroy 0b10 Robot/C 480 | . 200 220 60 Destroy 0b10 Robot/NC 20 | . 10 . 10 Destroy Leader 124 | . 54 60 10 Successful Hack 29 | . 21 8 . Disable Machine 15 | . . 15 . Destroy Structure 42 | . . . 42 Lose Combat Pursuer 15 | . . 15 . Influence Decreases 699 | . 263 252 184 Entered New Map 67 | . . 13 54 Time Decay 442 | . 223 149 70 Lost Part 190 | . 40 90 60 Squads Dispatched 3 | . 3 . . Investigation 2 | . 2 . . Extermination . | . . . . Reinforcement 1 | . 1 . . Assault . | . . . . Garrison . | . . . . Intercept . | . . . . Searches Triggered . | . . . . Construction Impeded . | . . . . Haulers Reinforced . | . . . . Active Scanning Responses . | . . . . Cargo Convoy Interrupts . | . . . . Stealth | -11 -10 -9 -9 --------- Run | Yrd Mat Mat Min Distress Signals 7 | . 2 5 . Communications Jammed . | . . . . Distress Signals . | . . . . Times Spotted 59 | . 20 24 15 Peak Tracking Total 15 | . 3 8 15 Tactical Retreats 4 | . 2 1 1 ECM-based Alert Blocks 3 | . 3 . . Traps | -11 -10 -9 -9 ------- Run | Yrd Mat Mat Min Traps Triggered 2 | . 2 . . Indirectly . | . . . . Trap Hack Attempts . | . . . . Triggered . | . . . . Disarmed . | . . . . Reprogrammed . | . . . . Reused . | . . . . Traps Extracted . | . . . . Installed . | . . . . Triggered . | . . . . Machines | -11 -10 -9 -9 ---------- Run | Yrd Mat Mat Min Machines Disabled 1 | . . 1 . Max in Single Turn 1 | . . 1 . Machines Repaired . | . . . . Machines Dismantled . | . . . . Machines Sabotaged . | . . . . Overloaded Fab Kills . | . . . . Hacking | -11 -10 -9 -9 --------- Run | Yrd Mat Mat Min Machines Accessed 6 | . 4 2 . Terminals 5 | . 3 2 . Fabricators . | . . . . Repair Stations . | . . . . Recycling Units 1 | . 1 . . Scanalyzers . | . . . . Garrison Access . | . . . . Total Hacks 15 | . 10 5 . Successful 10 | . 6 4 . Failed 5 | . 4 1 . Catastrophic 3 | . 3 . . Database Lockouts . | . . . . Manual 8 | . 5 3 . Terminals 12 | . 7 5 . Fabricators . | . . . . Repair Stations . | . . . . Recycling Units 3 | . 3 . . Scanalyzers . | . . . . Garrison Access . | . . . . Terminal Hacks 7 | . 3 4 . Part Schematic 2 | . 1 1 . Branch Access Points 1 | . 1 . . Terminal Index 1 | . 1 . . Scanalyzer Index 1 | . . 1 . Alert Level 1 | . . 1 . Locate Traps 1 | . . 1 . Fabricator Hacks . | . . . . Repair Station Hacks . | . . . . Recycling Unit Hacks 3 | . 3 . . Process 1 | . 1 . . Report Inventory 1 | . 1 . . Retrieve Matter 1 | . 1 . . Scanalyzer . | . . . . Garrison Access Hacks . | . . . . Unauthorized Hacks . | . . . . Terminals . | . . . . Fabricators . | . . . . Repair Stations . | . . . . Recycling Units . | . . . . Scanalyzers . | . . . . Garrison Access . | . . . . Data Cores Recovered . | . . . . Used . | . . . . Hacking Detections 5 | . 3 2 . Full Trace Events . | . . . . Feedback Events . | . . . . Feedback Blocked . | . . . . Robot Schematics Acquired . | . . . . Robots Built . | . . . . Authchips . | . . . . Time . | . . . . Total Robot Build Rating . | . . . . Part Schematics Acquired 2 | . 1 1 . Parts Built . | . . . . Authchips . | . . . . Time . | . . . . Total Part Build Rating . | . . . . Part Studies Acquired . | . . . . Parts Repaired . | . . . . Time . | . . . . Parts Recycled . | . . . . Recycled Matter 1 | . 1 . . Retrieved Matter 1 | . 1 . . Retrieved Components . | . . . . Parts Scanalyzed . | . . . . Part Schematics Acquired . | . . . . Parts Damaged . | . . . . Bothacking | -11 -10 -9 -9 ------------ Run | Yrd Mat Mat Min Used RIF Installer . | . . . . Robots Hacked . | . . . . Non-combat . | . . . . Combat . | . . . . Robot Hacks Applied . | . . . . Relay Couplers Released . | . . . . Fabnet Peak Effective % . | . . . . Robots Rewired . | . . . . Allies Hacked . | . . . . Hacks Repelled . | . . . . Allies | -11 -10 -9 -9 -------- Run | Yrd Mat Mat Min Total Allies . | . . . . Largest Group . | . . . . Highest-Rated Group . | . . . . Highest-Rated Ally . | . . . . Total Orders . | . . . . Ally Attacks . | . . . . Total Damage . | . . . . Kills . | . . . . Allies Corrupted . | . . . . Allies Melted . | . . . . Intel | -11 -10 -9 -9 ------- Run | Yrd Mat Mat Min Active Infowar (turns) 906 | . 629 277 . Sensors 636 | . 359 277 . ECM 270 | . 270 . . Robot Analysis Total . | . . . . Derelict Logs Recovered . | . . . . Drone Launches . | . . . . Drone Recoveries . | . . . . Exploration | -11 -10 -9 -9 ------------- Run | Yrd Mat Mat Min Turns Passed 1312 | 56 742 359 155 Spaces Moved 656 | 41 371 156 88 Core 14 | 4 . 7 3 Treads . | . . . . Legs 478 | . 244 149 85 Wheels 164 | 37 127 . . Hover . | . . . . Flight . | . . . . Fastest Speed 50 | 50 80 100 50 Average Speed 110 | 87 107 119 118 Slowest Speed 190 | 95 190 150 150 Overloaded Moves . | . . . . Propulsion Burnouts . | . . . . Robots Hopped . | . . . . Potential Cave-ins . | . . . . Cave-ins Triggered . | . . . . Exploration Rate (%) 30 | 3 60 23 36 Regions Visited 3 Branch Regions 1 Pre-discovered Areas . | . . . . Known Exits Taken . | . . . . Unknown Exits Taken 3 | 1 1 1 . Scrap Searched 1 | . . . 1 Spaces Dug 14 | . . . 14 Terrain Destroyed 79 | . . . 79 Melee . | . . . . Projectile . | . . . . AOE 79 | . . . 79 Terrain Rammed . | . . . . Walls Destroyed . | . . . . Machines Disabled . | . . . . Actions | -11 -10 -9 -9 --------- Run | Yrd Mat Mat Min Total 1035 | 58 618 243 116 Wait 192 | 6 169 7 10 Move 653 | 40 370 155 88 Hop . | . . . . Pick Up 25 | 7 9 6 3 Fast Attach 12 | 5 3 3 1 Attach 15 | . 7 6 2 Detach . | . . . . Swap 9 | . 5 2 2 Drop 12 | . 6 6 . Fire 87 | . 19 58 10 Melee 30 | . 30 . . Ram . | . . . . Kick . | . . . . Crush . | . . . . Escape Stasis . | . . . . Rewire . | . . . . Trap . | . . . . Miscellaneous . | . . . . Route ------- -11/Scrapyard -10/Materials (discovered 3 exits: *Mat / *Min x2) -9/Materials -9/Mines (discovered 1 exit: [*Mat]) History --------- Turn | Location | Event 11 | -11/Scrapyard | Discovered new exit (range 16) 57 | -11/Scrapyard | Entered Materials 101 | -10/Materials | Discovered new exit (range 6) 306 | -10/Materials | Build established: Mutant 362 | -10/Materials | Core integrity fell below 50% 404 | -10/Materials | Lost 4 parts (1p2n1w) 426 | -10/Materials | Identified exit to Mines 590 | -10/Materials | Discovered new exit (range 16) 799 | -10/Materials | Entered another Materials area 799 | -9/Materials | Evolved 2 slots: Propulsion x1, Utility x1 978 | -9/Materials | Discovered new exit (range 9) 1092 | -9/Materials | Core integrity fell below 50% 1120 | -9/Materials | Lost 9 parts (2p3n1u3w) 1158 | -9/Materials | Entered Mines 1188 | -9/Mines | Discovered new exit (range 3) 1282 | -9/Mines | Assembled infested the area 1287 | -9/Mines | Assisted by a Guerilla fighting off Assembled 1300 | -9/Mines | Core integrity fell below 20% 1313 | -9/Mines | Self-destructed Last Messages --------------- 01296_ as-38726 destroyed. 01297_ HV Slug penetrates Wall. 01299_ as-78192 destroyed. 01299_ as-08663 destroyed. 01301_ HV Slug penetrates Wall. 01303_ as-41913 destroyed. 01303_ Aluminum Leg destroyed. 01303_ System corrupted by crushing effect (+2). 01303_ Knocked back. 01303_ HV Slug penetrates as-74728. 01303_ as-74728 suffers critical hit (Destroy). 01303_ HV Slug penetrates Earth. 01305_ The unstable cave ceiling collapses. 01306_ Aluminum Leg destroyed. 01307_ as-74728 destroyed. 01308_ Particle Gun destroyed. 01309_ as-96111 suffers critical hit (Destroy). 01310_ Cooling System destroyed. 01310_ Lgt. Ion Engine destroyed. 01313_ The unstable cave ceiling collapses. Map ----- +----------------------------------------------------+ | ?????????????????????????????????????????????????? | | ?????????????????????????????????????????????????? | | ?????????????????????????????????????????????????? | | ?????????????????????????????????????????????????? | | ?????????????????????????????????????????????????? | | ??????????????????###????????????????????????????? | | ????????????????## ##???????????????????????????? | | ??????????????## ????????????????????????????? | | ????????????## ?????????????????????????????? | | ???????###### #??????????????????????????????? | | ??????## #???????????????????????????????? | | ??????# #???????????????????????????????? | | ??????# #???????????????????????????????? | | ?????## ##??????????????????????????????? | | ????## ##?????????????????????????????? | | ???## ##????????????????????????????? | | ??## #????????????????????????????? | | ### ##???????????????????????????? | | ###?????????????????????????? | | ##????????????????????????? | | ##???????????????????????? | | ##??????????????????????? | | ## ### ##?#??# ###????????????? | | ??## ##### # # #????????????? | | ??# #### ] h #????????????? | | ??## % # ### @ ##????????????? | | #### # #?## ### # #???????????? | | #??####?# %a % ????????? | | = #???????# % a%*|a?????????? | | ## ## #???????## %##%=?????????? | | ?# #### ###????????#### # #???????????? | | ?## #?## ##????????????? # ##?????????????? | | ??# #???# #?????????????? ####??????????????? | | ??# ????# #?????????????? #?????????????????? | | ??# ????# #??????????????######?????????????????? | | ??# ????# #?????????????????????????????????????? | | ??# ????# #?????????????????????????????????????? | | ?? ????# #?????????????????????????????????????? | | ?? ????# #####?????????????????????????????????? | | #######??# #?????????????????????????????????? | | # ##?##### #?????????????????????????????????? | | #?????# #?????????????????????????????????? | | #?????# #?????????????????????????????????? | | # ####### #######???????????????????????????? | | < % #???????????????????????????? | | ^ ##!########## ????????????????????? | | # ## #??????????????????????????????????????? | | # ### #??????????????????????????????????????? | | #^ ##?# #??????????????????????????????????????? | | #??# #??????????????????????????????????????? | +----------------------------------------------------+ Best States ------------- Heat Dissipation 60 Energy Generation 10 Energy Capacity 125 Matter Stores 400 Matter Capacity 400 Sight Range 16 Robot Scan Range 14 Terrain Scan Density 10 ECM Strength 1 Evasion (%) 55 Item Schematics ----------------- Med. Storage Unit | -10/Materials | Hacked Aluminum Leg | -9/Materials | Hacked Robot Schematics ------------------ None Fabricated ------------ Nothing Repaired ---------- Nothing Studied --------- None Alien Tech Used ----------------- None Achievements -------------- None Challenges ------------ None Game ------ Seed PointPlasmaDriveblaster Manual? 0 Play Time 00:23:03 Cumulative 23.1 hours Start 2026.01.06 @ 17:56:23 End 2026.01.06 @ 18:24:16 Sessions 1 Manual Loads 0 Difficulty Rogue Special Mode None Game No. 27 Rogue 27 Adventurer 0 Explorer 0 Win Type - Total 0 Types 0/0/0/0/0/0/0/0/0/0 Lore% 14 Gallery% 29 Achievement% 17 Wizard Run 0 Options --------- Layout 1 ASCII 0 Keyboard 0 Movement Mouse Keybinds 0 Fullscreen 1 Font 32/SmallcapsGlow Map View 50x35 Zoom Use 2% Tactical HUD 1 Map Filters NONE Filters NONE Steam X RUN: cfd77c18-5deb-490f-a6ba-351aadecb9c3